fUSD/lending_fUSD_20240428
["ID","MTS","AMOUNT","RATE_DAILY","PERIOD"]
[324809798,1714339935376,-500.0,0.00015342,2]
[324809799,1714339935385,-1721.28,0.00015342,2]
[324809800,1714339935395,-1025.92,0.00015342,2]
[324809801,1714339935405,-505.66,0.00015342,2]
[324809802,1714339935414,-500.0,0.00015342,2]
[324809803,1714339935424,-500.0,0.00015342,2]
[324809804,1714339935434,-784.13,0.00015342,2]
[324809805,1714339935444,-3106.8,0.00015342,2]
[324809806,1714339935456,-1332.25,0.00015342,2]
[324809807,1714339935465,-1770.89,0.00015342,2]
[324809808,1714339935474,-500.0,0.00015342,2]
[324809809,1714339935484,-3285.67,0.00015342,2]
[324809810,1714339935493,-500.0,0.00015342,2]
[324809811,1714339935502,-1973.0,0.00015342,2]
[324809812,1714339935512,-500.0,0.00015342,2]
[324809813,1714339935522,-581.39,0.00015342,2]
[324809814,1714339935534,-5056.57,0.00015342,2]
[324809815,1714339935544,-500.0,0.00015342,2]
[324809816,1714339935554,-528.94,0.00015342,2]
[324809817,1714339935565,-1960.25,0.00015342,2]
[324809818,1714339935576,-854.46,0.00015342,2]
[324809819,1714339935586,-500.0,0.00015342,2]
[324809820,1714339935596,-505.33,0.00015342,2]
[324809821,1714339935606,-1460.22,0.00015342,2]
[324809822,1714339935616,-500.0,0.00015342,2]
[324809823,1714339935625,-500.0,0.00015342,2]
[324809824,1714339935636,-4144.13,0.00015342,2]
[324809825,1714339935645,-2730.97,0.00015342,2]
[324809826,1714339935655,-2002.94,0.00015342,2]
[324809827,1714339935664,-1318.77,0.00015342,2]
[324809828,1714339935674,-500.0,0.00015342,2]
[324809829,1714339935683,-1001.05,0.00015342,2]
[324809830,1714339935693,-500.0,0.00015342,2]
[324809831,1714339935703,-9331.99,0.00015342,2]
[324809832,1714339935712,-4277.49,0.00015342,2]
[324809833,1714339935722,-5193.46,0.00015342,2]
[324809834,1714339935732,-775.85,0.00015342,2]
[324809835,1714339935743,-500.0,0.00015342,2]
[324809836,1714339935752,-743.46,0.00015342,2]
[324809837,1714339935763,-150.0,0.00015368,2]
[324809838,1714339935772,-15597.50872056,0.000154,2]
[324809839,1714339935785,-150.0,0.00015433,2]
[324809840,1714339935798,-150.0,0.00015445,2]
[324809841,1714339935808,-150.0,0.0001549,2]
[324809842,1714339935818,-150.0,0.00015501,2]
[324809843,1714339935830,-518.0,0.00015562,2]
[324809844,1714339935840,-500.0,0.00015616,2]
[324809845,1714339935851,-500.0,0.00015616,2]
[324809846,1714339935861,-506.83,0.00015616,2]
[324809847,1714339935875,-500.0,0.00015616,2]
[324809848,1714339935886,-500.0,0.00015616,2]
[324809849,1714339935896,-500.0,0.00015616,2]
[324809850,1714339935906,-500.0,0.00015616,2]
[324809851,1714339935916,-500.0,0.00015616,2]
[324809852,1714339935925,-500.0,0.00015616,2]
[324809853,1714339935935,-517.57,0.00015616,2]
[324809854,1714339935944,-586.34,0.00015616,2]
[324809855,1714339935954,-733.89,0.00015616,2]
[324809856,1714339935964,-674.04,0.00015616,2]
[324809857,1714339935974,-268.59,0.00015616,2]
[324809858,1714339935983,-552.07,0.00015616,2]
[324809859,1714339935993,-588.66,0.00015616,2]
[324809860,1714339936002,-365.24964166,0.00015616,2]
[324809861,1714339936011,-500.0,0.00015616,2]
[324809862,1714339936021,-798.42,0.00015616,2]
[324809863,1714339936030,-500.0,0.00015616,2]
[324809864,1714339936040,-928.66,0.00015616,2]
[324809865,1714339936050,-505.51,0.00015616,2]
[324809866,1714339936060,-500.0,0.00015616,2]
[324809867,1714339936069,-903.89,0.00015616,2]
[324809868,1714339936080,-737.63,0.00015616,2]
[324809869,1714339936090,-155.48,0.00015616,2]
[324809870,1714339936101,-864.97,0.00015616,2]
[324809871,1714339936111,-718.49,0.00015616,2]
[324809872,1714339936121,-504.53,0.00015616,2]
[324809873,1714339936131,-594.05,0.00015616,2]
[324809874,1714339936140,-500.0,0.00015616,2]
[324809875,1714339936151,-500.0,0.00015616,2]
[324809876,1714339936161,-500.0,0.00015616,2]
[324809877,1714339936171,-870.38,0.00015616,2]
[324809878,1714339936181,-501.18,0.00015616,2]
[324809879,1714339936191,-500.0,0.00015616,2]
[324809880,1714339936202,-500.0,0.00015616,2]
[324809881,1714339936212,-610.01,0.00015616,2]
[324809882,1714339936282,-567.57,0.00015616,2]
[324809883,1714339936293,-1451.39,0.00015616,2]
[324809884,1714339936302,-1302.89,0.00015616,2]
[324809885,1714339936312,-500.0,0.00015616,2]
[324809886,1714339936321,-545.45,0.00015616,2]
[324809887,1714339936331,-337.82191483,0.00015616,2]
[324809888,1714339936342,-500.0,0.00015616,2]
[324809889,1714339936351,-500.0,0.00015616,2]
[324809890,1714339936361,-525.6,0.00015616,2]
[324809891,1714339936370,-500.0,0.00015616,2]
[324809892,1714339936380,-500.0,0.00015616,2]
[324809893,1714339936390,-585.48,0.00015616,2]
[324809894,1714339936400,-584.64,0.00015616,2]
[324809895,1714339936410,-857.33,0.00015616,2]
[324809896,1714339936421,-500.0,0.00015616,2]
[324809897,1714339936431,-704.02,0.00015616,2]
[324809898,1714339936441,-227.38029396,0.00015616,2]
[324809899,1714339936452,-1320.75,0.00015616,2]
[324809900,1714339936462,-507.58,0.00015616,2]
[324809901,1714339936472,-730.12,0.00015616,2]
[324809902,1714339936482,-596.65,0.00015616,2]
[324809903,1714339936491,-500.0,0.00015616,2]
[324809904,1714339936501,-369.9,0.00015616,2]
[324809905,1714339936510,-565.97,0.00015616,2]
[324809906,1714339936520,-339.59781647,0.00015616,2]
[324809907,1714339936530,-875.78,0.00015616,2]
[324809908,1714339936540,-526.69,0.00015616,2]
[324809909,1714339936550,-560.54,0.00015616,2]
[324809910,1714339936560,-736.07,0.00015616,2]
[324809911,1714339936570,-500.0,0.00015616,2]
[324809912,1714339936580,-604.78,0.00015616,2]
[324809913,1714339936591,-500.0,0.00015616,2]
[324809914,1714339936601,-500.0,0.00015616,2]
[324809915,1714339936611,-500.0,0.00015616,2]
[324809916,1714339936620,-444.51580542,0.00015616,2]
[324809917,1714339936630,-523.54,0.00015616,2]
[324809918,1714339936640,-2956.01,0.00015616,2]
[324809919,1714339936650,-500.0,0.00015616,2]
[324809920,1714339936660,-565.94,0.00015616,2]
[324809921,1714339936670,-500.0,0.00015616,2]
[324809922,1714339936679,-539.3,0.00015616,2]
[324809923,1714339936689,-500.0,0.00015616,2]
[324809924,1714339936699,-825.93,0.00015616,2]
[324809925,1714339936710,-602.04,0.00015616,2]
[324809926,1714339936720,-651.65,0.00015616,2]
[324809927,1714339936730,-1568.74,0.00015616,2]
[324809928,1714339936740,-520.26,0.00015616,2]
[324809929,1714339936749,-500.0,0.00015616,2]
[324809930,1714339936760,-500.0,0.00015616,2]
[324809931,1714339936770,-500.0,0.00015616,2]
[324809932,1714339936780,-1140.77,0.00015616,2]
[324809933,1714339936794,-500.0,0.00015616,2]
[324809934,1714339936804,-549.86,0.00015616,2]
[324809935,1714339936814,-960.02,0.00015616,2]
[324809936,1714339936824,-500.0,0.00015616,2]
[324809937,1714339936834,-1723.08,0.00015616,2]
[324809938,1714339936844,-500.0,0.00015616,2]
[324809939,1714339936855,-555.74,0.00015616,2]
[324809940,1714339936865,-500.0,0.00015616,2]
[324809941,1714339936875,-1272.72,0.00015616,2]
[324809942,1714339936885,-500.0,0.00015616,2]
[324809943,1714339936894,-1044.49,0.00015616,2]
[324809944,1714339936904,-854.35,0.00015616,2]
[324809945,1714339936914,-500.0,0.00015616,2]
[324809946,1714339936924,-880.39,0.00015616,2]
[324809947,1714339936934,-1228.27,0.00015616,2]
[324809948,1714339936945,-500.0,0.00015616,2]
[324809949,1714339936956,-729.04,0.00015616,2]
[324809950,1714339936964,-500.0,0.00015616,2]
[324809951,1714339936974,-530.05,0.00015616,2]
[324809952,1714339936984,-3505.37,0.00015616,2]
[324809953,1714339936994,-797.92,0.00015616,2]
[324809954,1714339937004,-529.45,0.00015616,2]
[324809955,1714339937014,-629.63,0.00015616,2]
[324809956,1714339937024,-1082.28,0.00015616,2]
[324809957,1714339937034,-500.0,0.00015616,2]
[324809958,1714339937043,-3192.23,0.00015616,2]
[324809959,1714339937053,-4836.83,0.00015616,2]
[324809960,1714339937063,-1419.08,0.00015616,2]
[324809961,1714339937073,-3170.41,0.00015616,2]
[324809962,1714339937083,-554.07,0.00015616,2]
[324809963,1714339937092,-1075.74,0.00015616,2]
[324809964,1714339937102,-3460.09,0.00015616,2]
[324809965,1714339937112,-1169.99,0.00015616,2]
[324809966,1714339937122,-812.15,0.00015616,2]
[324809967,1714339937131,-9425.46,0.00015616,2]
[324809968,1714339937140,-1842.15,0.00015616,2]
[324809969,1714339937150,-500.0,0.00015616,2]
[324809970,1714339937160,-1069.53,0.00015616,2]
[324809971,1714339937170,-500.0,0.00015616,2]
[324809972,1714339937179,-500.0,0.00015616,2]
[324809973,1714339937189,-500.0,0.00015616,2]
[324809974,1714339937200,-14272.99,0.00015616,2]
[324809975,1714339937211,-544.14,0.00015616,2]
[324809976,1714339937221,-7051.41,0.00015616,2]
[324809977,1714339937231,-500.0,0.00015616,2]
[324809978,1714339937241,-2707.78,0.00015616,2]
[324809979,1714339937250,-1038.22,0.00015616,2]
[324809980,1714339937260,-789.36,0.00015616,2]
[324809981,1714339937270,-2766.64,0.00015616,2]
[324809982,1714339937281,-987.03,0.00015616,2]
[324809983,1714339937292,-1211.54,0.00015616,2]
[324809984,1714339937304,-675.35,0.00015616,2]
[324809985,1714339937315,-1666.13,0.00015616,2]
[324809986,1714339937325,-1516.18,0.00015616,2]
[324809987,1714339937334,-1349.22,0.00015616,2]
[324809988,1714339937344,-500.0,0.00015616,2]
[324809989,1714339937354,-6591.59,0.00015616,2]
[324809991,1714339937363,-1899.29,0.00015616,2]
[324809992,1714339937374,-1988.95,0.00015616,2]
[324809994,1714339937383,-783.36,0.00015616,2]
[324809995,1714339937393,-1261.65,0.00015616,2]
[324809996,1714339937403,-2135.06,0.00015616,2]
[324809997,1714339937413,-311.72,0.00015616,2]
[324809998,1714339937424,-500.0,0.00015616,2]
[324809999,1714339937435,-562.7,0.00015616,2]
[324810000,1714339937444,-500.0,0.00015616,2]
[324810001,1714339937454,-6232.35,0.00015616,2]
[324810002,1714339937464,-1410.0,0.00015616,2]
[324810003,1714339937474,-659.22,0.00015616,2]
[324810004,1714339937485,-1672.92,0.00015616,2]
[324810005,1714339937495,-1799.04,0.00015616,2]
[324810006,1714339937505,-500.0,0.00015616,2]
[324810007,1714339937515,-895.24,0.00015616,2]
[324810008,1714339937524,-1513.28,0.00015616,2]
[324810009,1714339937534,-6800.76,0.00015616,2]
[324810010,1714339937543,-500.0,0.00015616,2]
[324810011,1714339937552,-753.18,0.00015616,2]
[324810012,1714339937564,-500.0,0.00015616,2]
[324810013,1714339937574,-1733.37,0.00015616,2]
[324810014,1714339937584,-782.1,0.00015616,2]
[324810015,1714339937593,-1652.85,0.00015616,2]
[324810016,1714339937603,-500.0,0.00015616,2]
[324810017,1714339937613,-1590.77,0.00015616,2]
[324810018,1714339937623,-12133.37,0.00015616,2]
[324810019,1714339937633,-2025.62,0.00015616,2]
[324810020,1714339937643,-1421.85,0.00015616,2]
[324810021,1714339937653,-1135.8,0.00015616,2]
[324810022,1714339937664,-500.0,0.00015616,2]
[324810023,1714339937674,-4575.67,0.00015616,2]
[324810024,1714339937685,-500.0,0.00015616,2]
[324810025,1714339937696,-6107.04,0.00015616,2]
[324810026,1714339937706,-1396.35,0.00015616,2]
[324810027,1714339937715,-998.38,0.00015616,2]
[324810028,1714339937725,-2527.69,0.00015616,2]
[324810029,1714339937735,-2789.13,0.00015616,2]
[324810030,1714339937745,-1761.96,0.00015616,2]
[324810031,1714339937756,-1062.84,0.00015616,2]
[324810032,1714339937766,-500.0,0.00015616,2]
[324810033,1714339937776,-1977.9,0.00015616,2]
[324810034,1714339937789,-2491.39,0.00015616,2]
[324810035,1714339937801,-3361.84,0.00015616,2]
[324810036,1714339937811,-1098.32,0.00015616,2]
[324810037,1714339937821,-1081.51,0.00015616,2]
[324810038,1714339937832,-2735.15,0.00015616,2]
[324810039,1714339937843,-500.0,0.00015616,2]
[324810040,1714339937853,-1862.58,0.00015616,2]
[324810041,1714339937864,-4338.42,0.00015616,2]
[324810042,1714339937874,-1752.48,0.00015616,2]
[324810043,1714339937883,-844.65,0.00015616,2]
[324810044,1714339937895,-2116.48,0.00015616,2]
[324810045,1714339937905,-500.0,0.00015616,2]
[324810046,1714339937916,-1415.56,0.00015616,2]
[324810047,1714339937925,-552.51,0.00015616,2]
[324810048,1714339937934,-1696.77,0.00015616,2]
[324810049,1714339937944,-7394.13,0.00015616,2]
[324810050,1714339937953,-500.0,0.00015616,2]
[324810051,1714339937963,-2704.4,0.00015616,2]
[324810052,1714339937973,-547.48,0.00015616,2]
[324810053,1714339937983,-869.1,0.00015616,2]
[324810054,1714339937992,-3366.67,0.00015616,2]
[324810055,1714339938002,-709.72,0.00015616,2]
[324810056,1714339938012,-849.0,0.00015616,2]
[324810057,1714339938022,-4609.23,0.00015616,2]
[324810058,1714339938032,-1257.26,0.00015616,2]
[324810059,1714339938042,-500.0,0.00015616,2]
[324810060,1714339938052,-972.25,0.00015616,2]
[324810061,1714339938061,-1051.8,0.00015616,2]
[324810062,1714339938071,-1129.36,0.00015616,2]
[324810063,1714339938081,-500.0,0.00015616,2]
[324810064,1714339938091,-1721.28,0.00015616,2]
[324810065,1714339938101,-1025.92,0.00015616,2]
[324810066,1714339938112,-505.66,0.00015616,2]
[324810067,1714339938123,-500.0,0.00015616,2]
[324810068,1714339938133,-500.0,0.00015616,2]
[324810069,1714339938144,-784.13,0.00015616,2]
[324810070,1714339938154,-3106.8,0.00015616,2]
[324810071,1714339938163,-1332.25,0.00015616,2]
[324810072,1714339938174,-1770.89,0.00015616,2]
[324810073,1714339938183,-500.0,0.00015616,2]
[324810074,1714339938193,-3285.67,0.00015616,2]
[324810075,1714339938203,-500.0,0.00015616,2]
[324810076,1714339938212,-1973.0,0.00015616,2]
[324810077,1714339938223,-500.0,0.00015616,2]
[324810078,1714339938233,-581.39,0.00015616,2]
[324810079,1714339938244,-5056.57,0.00015616,2]
[324810080,1714339938254,-500.0,0.00015616,2]
[324810081,1714339938264,-528.94,0.00015616,2]
[324810082,1714339938273,-1960.25,0.00015616,2]
[324810083,1714339938284,-854.46,0.00015616,2]
[324810084,1714339938294,-500.0,0.00015616,2]
[324810085,1714339938304,-505.33,0.00015616,2]
[324810086,1714339938314,-1460.22,0.00015616,2]
[324810087,1714339938324,-226.29611843,0.00015616,2]
[324810088,1714339938334,-4144.13,0.00015616,2]
[324810089,1714339938343,-2730.97,0.00015616,2]
[324810090,1714339938353,-500.0,0.00015616,2]
[324810091,1714339938363,-2002.94,0.00015616,2]
[324810092,1714339938373,-1318.77,0.00015616,2]
[324810093,1714339938383,-500.0,0.00015616,2]
[324810094,1714339938393,-1001.05,0.00015616,2]
[324810095,1714339938405,-356.94689203,0.00015616,2]
[324810096,1714339938415,-9331.99,0.00015616,2]
[324810097,1714339938425,-4277.49,0.00015616,2]
[324810098,1714339938435,-5193.46,0.00015616,2]
[324810099,1714339938444,-775.85,0.00015616,2]
[324810100,1714339938454,-743.46,0.00015616,2]
[324810101,1714339938464,-638.12154735,0.00015616,2]
[324810102,1714339938474,-150.0,0.00015636,2]
[324810103,1714339938484,-150.0,0.00015743,2]
[324810104,1714339938494,-167.0,0.00015831,2]
[324810105,1714339938503,-500.0,0.0001589,2]
[324810106,1714339938513,-500.0,0.0001589,2]
[324810107,1714339938523,-506.83,0.0001589,2]
[324810108,1714339938533,-500.0,0.0001589,2]
[324810109,1714339938543,-500.0,0.0001589,2]
[324810110,1714339938553,-500.0,0.0001589,2]
[324810111,1714339938563,-500.0,0.0001589,2]
[324810112,1714339938572,-500.0,0.0001589,2]
[324810113,1714339938582,-517.57,0.0001589,2]
[324810114,1714339938592,-586.34,0.0001589,2]
[324810115,1714339938601,-733.89,0.0001589,2]
[324810116,1714339938611,-674.04,0.0001589,2]
[324810117,1714339938620,-552.07,0.0001589,2]
[324810118,1714339938630,-588.66,0.0001589,2]
[324810119,1714339938639,-645.56,0.0001589,2]
[324810120,1714339938649,-798.42,0.0001589,2]
[324810121,1714339938658,-500.0,0.0001589,2]
[324810122,1714339938669,-928.66,0.0001589,2]
[324810123,1714339938678,-505.51,0.0001589,2]
[324810124,1714339938688,-500.0,0.0001589,2]
[324810125,1714339938698,-903.89,0.0001589,2]
[324810126,1714339938708,-737.63,0.0001589,2]
[324810127,1714339938718,-864.97,0.0001589,2]
[324810128,1714339938728,-718.49,0.0001589,2]
[324810129,1714339938737,-504.53,0.0001589,2]
[324810130,1714339938747,-594.05,0.0001589,2]
[324810131,1714339938757,-500.0,0.0001589,2]
[324810132,1714339938768,-500.0,0.0001589,2]
[324810133,1714339938777,-500.0,0.0001589,2]
[324810134,1714339938794,-870.38,0.0001589,2]
[324810135,1714339938805,-501.18,0.0001589,2]
[324810136,1714339938815,-500.0,0.0001589,2]
[324810137,1714339938827,-610.01,0.0001589,2]
[324810138,1714339938837,-567.57,0.0001589,2]
[324810139,1714339938847,-1451.39,0.0001589,2]
[324810140,1714339938857,-1302.89,0.0001589,2]
[324810141,1714339938868,-500.0,0.0001589,2]
[324810142,1714339938879,-545.45,0.0001589,2]
[324810143,1714339938890,-612.65683233,0.0001589,2]
[324810144,1714339938899,-500.0,0.0001589,2]
[324810145,1714339938909,-525.6,0.0001589,2]
[324810146,1714339938918,-500.0,0.0001589,2]
[324810147,1714339938927,-500.0,0.0001589,2]
[324810148,1714339938937,-585.48,0.0001589,2]
[324810149,1714339938946,-584.64,0.0001589,2]
[324810150,1714339938957,-857.33,0.0001589,2]
[324810151,1714339938967,-500.0,0.0001589,2]
[324810152,1714339938976,-704.02,0.0001589,2]
[324810153,1714339938985,-1320.75,0.0001589,2]
[324810154,1714339938995,-507.58,0.0001589,2]
[324810155,1714339939005,-730.12,0.0001589,2]
[324810156,1714339939015,-596.65,0.0001589,2]
[324810157,1714339939024,-589.76,0.0001589,2]
[324810158,1714339939034,-369.9,0.0001589,2]
[324810159,1714339939043,-565.97,0.0001589,2]
[324810160,1714339939052,-875.78,0.0001589,2]
[324810161,1714339939062,-526.69,0.0001589,2]
[324810162,1714339939071,-560.54,0.0001589,2]
[324810163,1714339939080,-736.07,0.0001589,2]
[324810164,1714339939090,-500.0,0.0001589,2]
[324810165,1714339939100,-604.78,0.0001589,2]
[324810166,1714339939110,-500.0,0.0001589,2]
[324810167,1714339939120,-500.0,0.0001589,2]
[324810168,1714339939130,-523.54,0.0001589,2]
[324810169,1714339939140,-2956.01,0.0001589,2]
[324810170,1714339939150,-416.09948352,0.0001589,2]
[324810171,1714339939159,-565.94,0.0001589,2]
[324810172,1714339939169,-500.0,0.0001589,2]
[324810173,1714339939180,-500.0,0.0001589,2]
[324810174,1714339939190,-825.93,0.0001589,2]
[324810175,1714339939199,-602.04,0.0001589,2]
[324810176,1714339939210,-651.65,0.0001589,2]
[324810177,1714339939219,-1568.74,0.0001589,2]
[324810178,1714339939229,-520.26,0.0001589,2]
[324810179,1714339939239,-500.0,0.0001589,2]
[324810180,1714339939248,-500.0,0.0001589,2]
[324810181,1714339939258,-1140.77,0.0001589,2]
[324810182,1714339939268,-500.0,0.0001589,2]
[324810183,1714339939277,-549.86,0.0001589,2]
[324810184,1714339939287,-960.02,0.0001589,2]
[324810185,1714339939297,-464.94351936,0.0001589,2]
[324810186,1714339939307,-1723.08,0.0001589,2]
[324810187,1714339939316,-500.0,0.0001589,2]
[324810188,1714339939326,-555.74,0.0001589,2]
[324810189,1714339939336,-500.0,0.0001589,2]
[324810190,1714339939345,-1272.72,0.0001589,2]
[324810191,1714339939355,-500.0,0.0001589,2]
[324810192,1714339939365,-1044.49,0.0001589,2]
[324810193,1714339939375,-854.35,0.0001589,2]
[324810194,1714339939384,-880.39,0.0001589,2]
[324810195,1714339939394,-1228.27,0.0001589,2]
[324810196,1714339939404,-729.04,0.0001589,2]
[324810197,1714339939414,-500.0,0.0001589,2]
[324810198,1714339939424,-530.05,0.0001589,2]
[324810199,1714339939434,-3505.37,0.0001589,2]
[324810200,1714339939444,-797.92,0.0001589,2]
[324810201,1714339939454,-529.45,0.0001589,2]
[324810202,1714339939464,-629.63,0.0001589,2]
[324810203,1714339939474,-1082.28,0.0001589,2]
[324810204,1714339939484,-500.0,0.0001589,2]
[324810205,1714339939493,-3192.23,0.0001589,2]
[324810206,1714339939503,-4836.83,0.0001589,2]
[324810207,1714339939513,-1419.08,0.0001589,2]
[324810208,1714339939524,-3170.41,0.0001589,2]
[324810209,1714339939534,-554.07,0.0001589,2]
[324810210,1714339939543,-1075.74,0.0001589,2]
[324810211,1714339939554,-3460.09,0.0001589,2]
[324810212,1714339939730,-1169.99,0.0001589,2]
[324810213,1714339939746,-812.15,0.0001589,2]
[324810214,1714339939755,-9425.46,0.0001589,2]
[324810215,1714339939765,-1842.15,0.0001589,2]
[324810216,1714339939775,-500.0,0.0001589,2]
[324810217,1714339939785,-1069.53,0.0001589,2]
[324810218,1714339939797,-500.0,0.0001589,2]
[324810219,1714339939807,-500.0,0.0001589,2]
[324810220,1714339939817,-500.0,0.0001589,2]
[324810221,1714339939827,-14272.99,0.0001589,2]
[324810222,1714339939836,-544.14,0.0001589,2]
[324810223,1714339939845,-7051.41,0.0001589,2]
[324810224,1714339939855,-500.0,0.0001589,2]
[324810225,1714339939864,-2707.78,0.0001589,2]
[324810226,1714339939875,-1038.22,0.0001589,2]
[324810227,1714339939886,-789.36,0.0001589,2]
[324810228,1714339939894,-2766.64,0.0001589,2]
[324810229,1714339939904,-987.03,0.0001589,2]
[324810230,1714339939914,-1211.54,0.0001589,2]
[324810231,1714339939923,-675.35,0.0001589,2]
[324810232,1714339939933,-1666.13,0.0001589,2]
[324810233,1714339939943,-1516.18,0.0001589,2]
[324810234,1714339939952,-1349.22,0.0001589,2]
[324810235,1714339939962,-500.0,0.0001589,2]
[324810236,1714339939972,-6591.59,0.0001589,2]
[324810237,1714339939982,-1899.29,0.0001589,2]
[324810238,1714339939992,-1988.95,0.0001589,2]
[324810239,1714339940002,-783.36,0.0001589,2]
[324810240,1714339940012,-1261.65,0.0001589,2]
[324810241,1714339940022,-2135.06,0.0001589,2]
[324810242,1714339940031,-500.0,0.0001589,2]
[324810243,1714339940040,-562.7,0.0001589,2]
[324810244,1714339940050,-500.0,0.0001589,2]
[324810245,1714339940060,-6232.35,0.0001589,2]
[324810246,1714339940069,-1410.0,0.0001589,2]
[324810247,1714339940079,-659.22,0.0001589,2]
[324810248,1714339940088,-1672.92,0.0001589,2]
[324810249,1714339940098,-1799.04,0.0001589,2]
[324810250,1714339940108,-500.0,0.0001589,2]
[324810251,1714339940117,-895.24,0.0001589,2]
[324810252,1714339940127,-1513.28,0.0001589,2]
[324810253,1714339940136,-6800.76,0.0001589,2]
[324810254,1714339940145,-500.0,0.0001589,2]
[324810255,1714339940155,-753.18,0.0001589,2]
[324810256,1714339940165,-500.0,0.0001589,2]
[324810257,1714339940174,-782.1,0.0001589,2]
[324810258,1714339940183,-1652.85,0.0001589,2]
[324810259,1714339940192,-500.0,0.0001589,2]
[324810260,1714339940202,-1733.37,0.0001589,2]
[324810261,1714339940213,-1590.77,0.0001589,2]
[324810262,1714339940223,-12133.37,0.0001589,2]
[324810263,1714339940233,-2025.62,0.0001589,2]
[324810264,1714339940244,-1421.85,0.0001589,2]
[324810265,1714339940253,-1135.8,0.0001589,2]
[324810266,1714339940263,-500.0,0.0001589,2]
[324810267,1714339940272,-4575.67,0.0001589,2]
[324810268,1714339940282,-500.0,0.0001589,2]
[324810269,1714339940292,-6107.04,0.0001589,2]
[324810270,1714339940302,-1396.35,0.0001589,2]
[324810271,1714339940311,-998.38,0.0001589,2]
[324810272,1714339940321,-2527.69,0.0001589,2]
[324810273,1714339940330,-2789.13,0.0001589,2]
[324810274,1714339940340,-1761.96,0.0001589,2]
[324810275,1714339940350,-1062.84,0.0001589,2]
[324810276,1714339940359,-500.0,0.0001589,2]
[324810277,1714339940369,-1977.9,0.0001589,2]
[324810278,1714339940378,-2491.39,0.0001589,2]
[324810279,1714339940388,-3361.84,0.0001589,2]
[324810280,1714339940397,-1098.32,0.0001589,2]
[324810281,1714339940406,-1081.51,0.0001589,2]
[324810282,1714339940415,-2735.15,0.0001589,2]
[324810283,1714339940425,-500.0,0.0001589,2]
[324810284,1714339940434,-1862.58,0.0001589,2]
[324810285,1714339940444,-4338.42,0.0001589,2]
[324810286,1714339940454,-1752.48,0.0001589,2]
[324810287,1714339940464,-844.65,0.0001589,2]
[324810288,1714339940474,-2116.48,0.0001589,2]
[324810289,1714339940484,-500.0,0.0001589,2]
[324810290,1714339940493,-1415.56,0.0001589,2]
[324810291,1714339940502,-552.51,0.0001589,2]
[324810292,1714339940511,-1696.77,0.0001589,2]
[324810293,1714339940520,-7394.13,0.0001589,2]
[324810294,1714339940529,-500.0,0.0001589,2]
[324810295,1714339940540,-2704.4,0.0001589,2]
[324810296,1714339940549,-547.48,0.0001589,2]
[324810297,1714339940559,-869.1,0.0001589,2]
[324810298,1714339940568,-3366.67,0.0001589,2]
[324810299,1714339940579,-709.72,0.0001589,2]